fUST/lending_fUST_20251003
["ID","MTS","AMOUNT","RATE_DAILY","PERIOD"]
[388893826,1759478847477,-151.0,0.000185,2]
[388893827,1759478847501,-151.0,0.000185,2]
[388893828,1759478847523,-151.0,0.000185,2]
[388893829,1759478847698,-151.0,0.000185,2]
[388893830,1759478847727,-151.0,0.000185,2]
[388893831,1759478847749,-151.0,0.000185,2]
[388893832,1759478847770,-151.0,0.000185,2]
[388893833,1759478847795,-168.0,0.00018509,2]
[388893834,1759478847820,-300.0,0.00018512,2]
[388893835,1759478847845,-300.0,0.00018512,2]
[388893836,1759478847878,-300.0,0.00018512,2]
[388893837,1759478847903,-300.0,0.00018512,2]
[388893838,1759478847927,-300.0,0.00018512,2]
[388893839,1759478847955,-300.0,0.00018512,2]
[388893840,1759478847980,-300.0,0.00018512,2]
[388893841,1759478848005,-300.0,0.00018512,2]
[388893842,1759478848029,-300.0,0.00018512,2]
[388893843,1759478848055,-300.0,0.00018512,2]
[388893844,1759478848081,-300.0,0.00018512,2]
[388893845,1759478848105,-300.0,0.00018512,2]
[388893846,1759478848131,-300.0,0.00018512,2]
[388893847,1759478848156,-300.0,0.00018512,2]
[388893848,1759478848182,-300.0,0.00018512,2]
[388893849,1759478848206,-168.0,0.00018539,2]
[388893850,1759478848231,-600.0,0.00018545,2]
[388893851,1759478848252,-500.0,0.00018573,2]
[388893852,1759478848276,-500.0,0.00018573,2]
[388893853,1759478848298,-500.80658169,0.00018573,2]
[388893854,1759478848319,-500.0,0.00018573,2]
[388893855,1759478848341,-500.0,0.00018573,2]
[388893856,1759478848362,-501.17418422,0.00018573,2]
[388893857,1759478848384,-500.40492947,0.00018573,2]
[388893858,1759478848406,-500.0,0.00018573,2]
[388893859,1759478848428,-500.0,0.00018573,2]
[388893860,1759478848451,-176.82210398,0.00018573,2]
[388893861,1759478848472,-500.0,0.00018573,2]
[388893862,1759478848493,-500.0,0.00018573,2]
[388893863,1759478848514,-500.0,0.00018573,2]
[388893864,1759478848535,-500.0,0.00018573,2]
[388893865,1759478848559,-403.49096014,0.00018573,2]
[388893866,1759478848585,-502.28253466,0.00018573,2]
[388893867,1759478848606,-500.0,0.00018573,2]
[388893868,1759478848628,-500.0,0.00018573,2]
[388893869,1759478848650,-214.00088679,0.00018573,2]
[388893870,1759478848672,-500.0,0.00018573,2]
[388893871,1759478848693,-500.0,0.00018573,2]
[388893872,1759478848714,-515.0126683,0.00018573,2]
[388893873,1759478848737,-501.25410146,0.00018573,2]
[388893874,1759478848760,-500.34755871,0.00018573,2]
[388893875,1759478848783,-500.0,0.00018573,2]
[388893876,1759478848805,-500.0,0.00018573,2]
[388893877,1759478848826,-500.0,0.00018573,2]
[388893878,1759478848849,-500.0,0.00018573,2]
[388893879,1759478848875,-500.0,0.00018573,2]
[388893880,1759478848895,-500.0,0.00018573,2]
[388893881,1759478848919,-500.0,0.00018573,2]
[388893882,1759478848942,-341.2744136,0.00018573,2]
[388893883,1759478848964,-182.94183546,0.00018573,2]
[388893884,1759478848986,-500.0,0.00018573,2]
[388893885,1759478849008,-500.0,0.00018573,2]
[388893886,1759478849029,-500.0,0.00018573,2]
[388893887,1759478849050,-265.13487493,0.00018573,2]
[388893888,1759478849072,-342.15654309,0.00018573,2]
[388893889,1759478849093,-501.45112122,0.00018573,2]
[388893890,1759478849114,-500.0,0.00018573,2]
[388893891,1759478849135,-500.0,0.00018573,2]
[388893892,1759478849156,-500.80290947,0.00018573,2]
[388893893,1759478849178,-200.09093422,0.00018573,2]
[388893894,1759478849199,-500.0,0.00018573,2]
[388893895,1759478849220,-183.46112169,0.00018573,2]
[388893896,1759478849241,-501.16214753,0.00018573,2]
[388893897,1759478849262,-500.0,0.00018573,2]
[388893898,1759478849284,-500.0,0.00018573,2]
[388893899,1759478849307,-500.0,0.00018573,2]
[388893900,1759478849328,-500.0,0.00018573,2]
[388893901,1759478849350,-500.32783636,0.00018573,2]
[388893902,1759478849371,-508.5344351,0.00018573,2]
[388893903,1759478849392,-500.0,0.00018573,2]
[388893904,1759478849413,-500.57963797,0.00018573,2]
[388893905,1759478849436,-297.2920934,0.00018575,2]
[388893906,1759478849461,-79351.24536538,0.0001858,2]
[388893907,1759478849483,-500.0,0.00018586,2]
[388893908,1759478849504,-500.0,0.00018587,2]
[388893909,1759478849525,-500.0,0.00018587,2]
[388893910,1759478849548,-500.0,0.00018587,2]
[388893911,1759478849571,-159.44133141,0.00018587,2]
[388893912,1759478849593,-500.0,0.00018587,2]
[388893913,1759478849617,-500.0,0.00018587,2]
[388893914,1759478849642,-500.0,0.00018587,2]
[388893915,1759478849664,-500.0,0.00018587,2]
[388893916,1759478849688,-500.0,0.00018587,2]
[388893917,1759478849711,-500.0,0.00018587,2]
[388893918,1759478849733,-215.06368928,0.00018587,2]
[388893919,1759478849754,-500.0,0.00018587,2]
[388893920,1759478849775,-500.0,0.00018587,2]
[388893921,1759478849797,-500.0,0.00018587,2]
[388893922,1759478849820,-544.64,0.00018587,2]
[388893923,1759478849842,-2027.19,0.00018587,2]
[388893924,1759478849864,-500.0,0.00018587,2]
[388893925,1759478849887,-500.0,0.00018587,2]
[388893926,1759478849911,-500.0,0.00018587,2]
[388893927,1759478849937,-500.0,0.00018587,2]
[388893928,1759478849960,-500.0,0.00018587,2]
[388893929,1759478849983,-560.53,0.00018587,2]
[388893930,1759478850006,-500.0,0.00018587,2]
[388893931,1759478850030,-1395.57,0.00018587,2]
[388893932,1759478850052,-500.0,0.00018587,2]
[388893933,1759478850077,-841.47,0.00018587,2]
[388893934,1759478850103,-500.0,0.00018587,2]
[388893935,1759478850126,-500.0,0.00018587,2]
[388893936,1759478850150,-962.1,0.00018587,2]
[388893937,1759478850173,-1732.13,0.00018587,2]
[388893938,1759478850195,-500.0,0.00018587,2]
[388893939,1759478850219,-500.0,0.00018587,2]
[388893940,1759478850242,-500.0,0.00018587,2]
[388893941,1759478850267,-1333.18,0.00018587,2]
[388893942,1759478850289,-500.0,0.00018587,2]
[388893943,1759478850310,-500.0,0.00018587,2]
[388893944,1759478850332,-2217.54,0.00018587,2]
[388893945,1759478850355,-753.03,0.00018587,2]
[388893946,1759478850377,-640.73069853,0.00018587,2]
[388893947,1759478850399,-955.05,0.00018587,2]
[388893948,1759478850422,-500.0,0.00018587,2]
[388893949,1759478850443,-181.89284597,0.00018587,2]
[388893950,1759478850465,-500.0,0.00018587,2]
[388893951,1759478850488,-500.0,0.00018587,2]
[388893952,1759478850510,-753.05,0.00018587,2]
[388893953,1759478850532,-500.0,0.00018587,2]
[388893954,1759478850555,-130.78094241,0.00018587,2]
[388893955,1759478851815,-500.0,0.00018039,2]
[388893956,1759478851836,-500.0,0.0001804,2]
[388893957,1759478851859,-500.0,0.00018041,2]
[388893958,1759478851885,-500.0,0.00018313,2]
[388893959,1759478851907,-500.0,0.00018314,2]
[388893960,1759478851926,-500.0,0.00018315,2]
[388893961,1759478851949,-45192.4092229,0.0001837,2]
[388893962,1759478851970,-635.14524499,0.00018573,2]
[388893963,1759478851990,-169.22494282,0.00018573,2]
[388893964,1759478852010,-500.0,0.00018573,2]
[388893965,1759478852031,-500.0,0.00018573,2]
[388893966,1759478852055,-369.21905759,0.00018587,2]
[388893967,1759478852076,-1746.8,0.00018587,2]
[388893968,1759478852098,-854.41,0.00018587,2]
[388893969,1759478852118,-500.0,0.00018587,2]
[388893970,1759478852139,-500.0,0.00018587,2]
[388893971,1759478852160,-500.0,0.00018587,2]
[388893972,1759478852182,-500.0,0.00018587,2]
[388893973,1759478852203,-640.92,0.00018587,2]
[388893974,1759478852226,-2823.88,0.00018587,2]
[388893975,1759478852253,-500.0,0.00018587,2]
[388893976,1759478852274,-500.0,0.00018587,2]
[388893977,1759478852294,-885.34,0.00018587,2]
[388893978,1759478852315,-844.21,0.00018587,2]
[388893979,1759478852335,-500.0,0.00018587,2]
[388893980,1759478852356,-1081.83,0.00018587,2]
[388893981,1759478852376,-811.42,0.00018587,2]
[388893982,1759478852396,-1307.5,0.00018587,2]
[388893983,1759478852417,-520.03,0.00018587,2]
[388893984,1759478852439,-2403.37,0.00018587,2]
[388893985,1759478852460,-2383.58,0.00018587,2]
[388893986,1759478852480,-500.0,0.00018587,2]
[388893987,1759478852503,-500.0,0.00018587,2]
[388893988,1759478852523,-291.82120761,0.00018588,2]
[388893989,1759478852544,-500.0,0.00018588,2]
[388893990,1759478852565,-500.0,0.00018588,2]
[388893991,1759478852586,-23285.33942009,0.00018588,2]
[388893992,1759478853046,-500.0,0.00018041,2]
[388893993,1759478853068,-295.6879856,0.000183,2]
[388893994,1759478853089,-273.55,0.00018315,2]
[388893995,1759478853109,-500.0,0.00018573,2]
[388893996,1759478853129,-500.0,0.00018573,2]
[388893997,1759478853148,-501.05578111,0.00018573,2]
[388893998,1759478853168,-500.0,0.00018573,2]
[388893999,1759478853194,-500.0,0.00018587,2]
[388894000,1759478853216,-147201.51160429,0.00018588,2]
[388894001,1759478853303,-500.0,0.0001804,2]
[388894002,1759478853323,-153.0,0.000183,2]
[388894003,1759478853344,-500.0,0.00018314,2]
[388894004,1759478853366,-21322.25792,0.00018588,2]
[388894005,1759478854482,-500.0,0.00018039,2]
[388894006,1759478854504,-581.96,0.00018039,2]
[388894007,1759478854524,-500.0,0.00018039,2]
[388894008,1759478854543,-500.0,0.0001804,2]
[388894009,1759478854562,-500.0,0.0001804,2]
[388894010,1759478854580,-1200.0,0.0001804,2]
[388894011,1759478854599,-523.59,0.00018042,2]
[388894012,1759478854617,-500.0,0.00018313,2]
[388894013,1759478854636,-581.96,0.00018313,2]
[388894014,1759478854655,-500.0,0.00018313,2]
[388894015,1759478854674,-500.0,0.00018314,2]
[388894016,1759478854692,-500.0,0.00018314,2]
[388894017,1759478854711,-521.4510944,0.00018573,2]
[388894018,1759478854730,-500.0,0.00018573,2]
[388894019,1759478854752,-500.0,0.00018573,2]
[388894020,1759478854774,-500.0,0.00018573,2]
[388894021,1759478854794,-500.0,0.00018573,2]
[388894022,1759478854813,-341.47,0.00018587,2]
[388894023,1759478854833,-581.96,0.00018587,2]
[388894024,1759478854852,-593.54,0.00018587,2]
[388894025,1759478855067,-119837.4827506,0.00018588,2]
[388894027,1759478881056,1000.0,0.00017045,2]
[388894028,1759478931487,307.11027697,0.00017941,2]
[388894030,1759478984997,9692.89972303,0.00017941,2]
[388894031,1759478985025,10000.01,0.00017941,2]
[388894032,1759478985052,10000.01,0.00017941,2]
[388894033,1759478985089,3147.01459936,0.00017941,2]
[388894034,1759478991069,-300.0,0.00018038,2]
[388894035,1759478991102,-500.0,0.00018039,2]
[388894036,1759478991138,-500.0,0.00018039,2]
[388894037,1759478991173,-500.0,0.00018039,2]
[388894038,1759478991207,-500.0,0.00018039,2]
[388894039,1759478991242,-500.0,0.00018039,2]
[388894040,1759478991276,-525.44,0.00018039,2]
[388894041,1759478991311,-957.51,0.00018039,2]
[388894042,1759478991344,-500.0,0.00018039,2]
[388894043,1759478993343,-500.0,0.00018039,2]
[388894044,1759478993374,-673.08,0.00018039,2]
[388894045,1759478993409,-645.63,0.00018039,2]
[388894046,1759478993442,-500.0,0.00018039,2]
[388894047,1759478993475,-1298.36,0.00018039,2]
[388894048,1759478993507,-500.0,0.00018039,2]
[388894049,1759478993540,-511.14,0.00018039,2]
[388894050,1759478993580,168.0,0.00017817,2]
[388894051,1759478993696,-743.59,0.00018039,2]
[388894052,1759478993731,-500.0,0.00018039,2]
[388894053,1759478993763,-925.57,0.00018039,2]
[388894054,1759478993796,-500.0,0.00018039,2]
[388894055,1759478993829,-500.0,0.00018039,2]
[388894056,1759478993862,-1349.6,0.00018039,2]
[388894057,1759478993900,-361.07,0.00018039,2]
[388894058,1759478996299,168.0,0.00017943,2]
[388894059,1759478998060,-240.35,0.00018039,2]
[388894060,1759478998092,-381.15904883,0.00018039,2]
[388894061,1759478998126,-1401.97,0.00018039,2]
[388894062,1759478998158,-500.0,0.00018039,2]
[388894063,1759478998190,-653.94,0.00018039,2]
[388894064,1759478998222,-807.29190234,0.00018039,2]
[388894065,1759479000036,-2030.58809766,0.00018039,2]
[388894066,1759479000069,-500.0,0.00018039,2]
[388894067,1759479000101,-603.87,0.00018039,2]
[388894068,1759479000134,-500.0,0.00018039,2]
[388894069,1759479000166,-500.0,0.00018039,2]
[388894070,1759479000199,-500.0,0.00018039,2]
[388894071,1759479000232,-231.09380468,0.00018039,2]
[388894072,1759479000427,-268.90619532,0.00018039,2]
[388894073,1759479000460,-736.62,0.00018039,2]
[388894074,1759479000492,-500.0,0.00018039,2]
[388894075,1759479000524,-500.0,0.00018039,2]
[388894076,1759479000558,-500.0,0.00018039,2]
[388894077,1759479000591,-500.0,0.00018039,2]
[388894078,1759479000623,-500.0,0.00018039,2]
[388894079,1759479000656,-500.0,0.00018039,2]
[388894080,1759479000688,-596.44,0.00018039,2]
[388894081,1759479000720,-277.61760936,0.00018039,2]
[388894082,1759479002094,-300.0,0.00018038,2]
[388894083,1759479002130,-240.84239064,0.00018039,2]
[388894084,1759479002168,-906.73,0.00018039,2]
[388894085,1759479002205,-500.0,0.00018039,2]
[388894086,1759479002241,-1635.01,0.00018039,2]
[388894087,1759479002276,-500.0,0.00018039,2]
[388894088,1759479002311,-500.0,0.00018039,2]
[388894089,1759479002346,-50.29521872,0.00018039,2]
[388894090,1759479004267,-300.0,0.00018038,2]
[388894091,1759479004304,-300.0,0.00018038,2]
[388894092,1759479004344,-300.0,0.00018038,2]
[388894093,1759479004380,-734.25478128,0.00018039,2]
[388894094,1759479004419,-728.93,0.00018039,2]
[388894095,1759479004458,-1601.23,0.00018039,2]
[388894096,1759479004497,-914.57,0.00018039,2]
[388894097,1759479007541,4798.82,0.00018011,2]
[388894098,1759479008113,-1200.0,0.00018038,2]
[388894099,1759479008148,-1144.07,0.00018039,2]
[388894100,1759479008184,-500.0,0.00018039,2]
[388894101,1759479008219,-503.51,0.00018039,2]
[388894102,1759479008253,-1409.43,0.00018039,2]
[388894104,1759479015189,-763.76,0.00018039,2]
[388894105,1759479015224,-2588.55,0.00018039,2]
[388894106,1759479015259,-500.0,0.00018039,2]
[388894107,1759479015294,-846.7,0.00018039,2]
[388894108,1759479015330,-101.99,0.00018039,2]
[388894109,1759479027519,155.0,7.9e-07,2]
[388894110,1759479027770,9845.01,0.00018,2]
[388894111,1759479027796,10000.01,0.00018,2]
[388894112,1759479027823,10000.01,0.00018,2]
[388894113,1759479027851,200.7688,0.00018,2]
[388894241,1759479032447,-398.01,0.00018039,2]
[388894242,1759479032456,-651.7,0.00018039,2]
[388894243,1759479032466,-500.0,0.00018039,2]
[388894244,1759479032475,-2085.63,0.00018039,2]
[388894245,1759479032485,-1615.98,0.00018039,2]
[388894246,1759479032494,-500.0,0.00018039,2]
[388894247,1759479032503,-500.0,0.00018039,2]
[388894248,1759479032512,-500.0,0.00018039,2]
[388894249,1759479032522,-500.0,0.00018039,2]
[388894250,1759479032532,-779.5,0.00018039,2]
[388894251,1759479032541,-500.0,0.00018039,2]
[388894252,1759479032550,-500.0,0.00018039,2]
[388894253,1759479032560,-500.0,0.00018039,2]
[388894254,1759479032569,-1107.674344,0.0001804,2]
[388894255,1759479032581,-387.975656,0.0001804,2]
[388894256,1759479032590,-500.0,0.0001804,2]
[388894257,1759479032600,-989.11,0.0001804,2]
[388894258,1759479032610,-187.12422794,0.0001804,2]
[388894259,1759479032621,-312.87577206,0.0001804,2]
[388894260,1759479032631,-162.76584781,0.0001804,2]
[388894261,1759479032642,-669.01415219,0.0001804,2]
[388894262,1759479032651,-500.0,0.0001804,2]
[388894263,1759479032661,-500.0,0.0001804,2]
[388894264,1759479032670,-806.56,0.0001804,2]
[388894265,1759479032679,-500.0,0.0001804,2]
[388894266,1759479032688,-990.81,0.0001804,2]
[388894267,1759479032698,-500.0,0.0001804,2]
[388894268,1759479032707,-916.74,0.0001804,2]
[388894269,1759479032716,-500.0,0.0001804,2]
[388894270,1759479032726,-2350.61,0.0001804,2]
[388894271,1759479032736,-523.32,0.0001804,2]
[388894272,1759479032745,-7101.28,0.0001804,2]
[388894273,1759479032754,-513.31,0.0001804,2]
[388894274,1759479032763,-2299.71196438,0.0001804,2]
[388894279,1759479038067,-376.92647005,0.00018039,2]
[388894280,1759479038077,-383.87278743,0.00018039,2]
[388894281,1759479038087,-70.29302893,0.00018039,2]
[388894308,1759479047379,-1363.03697107,0.00018039,2]
[388894309,1759479047388,-946.6,0.00018039,2]
[388894310,1759479047398,-2581.03803562,0.0001804,2]
[388894311,1759479047408,-624.64,0.0001804,2]
[388894312,1759479047419,-1694.78,0.0001804,2]
[388894313,1759479047428,-4521.78,0.0001804,2]
[388894314,1759479047438,-1703.88,0.0001804,2]
[388894315,1759479047447,-545.85,0.0001804,2]
[388894316,1759479047457,-500.0,0.0001804,2]
[388894317,1759479047467,-500.0,0.0001804,2]
[388894318,1759479047476,-611.03,0.0001804,2]
[388894319,1759479047486,-873.08,0.0001804,2]
[388894320,1759479047495,-737.88,0.0001804,2]
[388894321,1759479047505,-500.0,0.0001804,2]
[388894322,1759479047514,-500.0,0.00018041,2]
[388894323,1759479047524,-500.0,0.00018041,2]
[388894324,1759479047534,-500.0,0.00018041,2]
[388894325,1759479047543,-500.0,0.00018041,2]
[388894326,1759479047552,-500.0,0.00018041,2]
[388894327,1759479047562,-500.0,0.00018041,2]
[388894328,1759479047571,-500.0,0.00018041,2]
[388894329,1759479047581,-307.18150337,0.00018041,2]
[388894330,1759479047590,-530.35,0.00018041,2]
[388894331,1759479047600,-500.0,0.00018041,2]
[388894332,1759479047610,-500.0,0.00018041,2]
[388894333,1759479047620,-500.0,0.00018041,2]
[388894334,1759479047629,-500.0,0.00018041,2]
[388894335,1759479047639,-549.94,0.00018041,2]
[388894336,1759479047649,-500.0,0.00018041,2]
[388894337,1759479047659,-688.95,0.00018041,2]
[388894338,1759479047669,-581.15,0.00018041,2]
[388894339,1759479047679,-500.0,0.00018042,2]
[388894340,1759479047689,-500.0,0.00018042,2]
[388894341,1759479047698,-500.0,0.00018042,2]
[388894342,1759479047707,-500.0,0.00018042,2]
[388894343,1759479047717,-500.0,0.00018042,2]
[388894344,1759479047726,-500.0,0.00018042,2]
[388894345,1759479047735,-500.0,0.00018042,2]
[388894346,1759479047744,-500.0,0.00018042,2]
[388894347,1759479047753,-500.0,0.00018042,2]
[388894348,1759479047762,-500.0,0.00018042,2]
[388894349,1759479047771,-500.0,0.00018042,2]
[388894350,1759479047781,-500.0,0.00018042,2]
[388894351,1759479047789,-500.0,0.00018042,2]
[388894352,1759479047799,-500.0,0.00018042,2]
[388894353,1759479047808,-500.0,0.00018042,2]
[388894354,1759479047817,-500.0,0.00018043,2]
[388894355,1759479047827,-370.03,0.00018043,2]
[388894356,1759479047836,-151.0,0.00018059,2]
[388894357,1759479047845,-151.0,0.00018105,2]
[388894358,1759479047854,-1378.99632505,0.00018105,2]
[388894359,1759479047864,-168.0,0.00018129,2]
[388894360,1759479047874,-539.23,0.00018305,3]
[388894361,1759479047883,-269.61,0.00018305,3]
[388894362,1759479047892,-164.09112592,0.00018312,2]
[388894363,1759479047902,-315.01530443,0.00018312,2]
[388894364,1759479047913,-500.0,0.00018313,2]
[388894365,1759479047928,-500.0,0.00018313,2]
[388894366,1759479047937,-957.51,0.00018313,2]
[388894367,1759479047947,-500.0,0.00018313,2]
[388894368,1759479047959,-500.0,0.00018313,2]
[388894369,1759479047970,-673.08,0.00018313,2]
[388894370,1759479047980,-645.63,0.00018313,2]
[388894371,1759479047989,-500.0,0.00018313,2]
[388894372,1759479047999,-1298.36,0.00018313,2]
[388894373,1759479048009,-500.0,0.00018313,2]
[388894374,1759479048019,-1254.73,0.00018313,2]
[388894375,1759479048029,-500.0,0.00018313,2]
[388894376,1759479048039,-925.57,0.00018313,2]
[388894377,1759479048048,-500.0,0.00018313,2]
[388894378,1759479048059,-500.0,0.00018313,2]
[388894379,1759479048074,-1349.6,0.00018313,2]
[388894380,1759479048084,-601.42,0.00018313,2]
[388894381,1759479048093,-1401.97,0.00018313,2]
[388894382,1759479048103,-500.0,0.00018313,2]
[388894383,1759479048113,-653.94,0.00018313,2]
[388894384,1759479048123,-2837.88,0.00018313,2]
[388894385,1759479048133,-478.17476829,0.00018313,2]
[388894386,1759479048143,-603.87,0.00018313,2]
[388894387,1759479048152,-500.0,0.00018313,2]
[388894388,1759479048162,-500.0,0.00018313,2]
[388894389,1759479048170,-500.0,0.00018313,2]
[388894390,1759479048180,-346.9221788,0.00018313,2]
[388894391,1759479048189,-736.62,0.00018313,2]
[388894392,1759479048198,-500.0,0.00018313,2]
[388894393,1759479048207,-500.0,0.00018313,2]
[388894394,1759479048217,-500.0,0.00018313,2]
[388894395,1759479048226,-500.0,0.00018313,2]
[388894396,1759479048235,-500.0,0.00018313,2]
[388894397,1759479048244,-596.44,0.00018313,2]
[388894398,1759479048254,-518.46,0.00018313,2]
[388894399,1759479048264,-906.73,0.00018313,2]
[388894400,1759479048273,-500.0,0.00018313,2]
[388894401,1759479048282,-1635.01,0.00018313,2]
[388894402,1759479048291,-500.0,0.00018313,2]
[388894403,1759479048301,-500.0,0.00018313,2]
[388894404,1759479048312,-784.55,0.00018313,2]
[388894405,1759479048323,-728.93,0.00018313,2]
[388894406,1759479048332,-1601.23,0.00018313,2]
[388894407,1759479048342,-914.57,0.00018313,2]
[388894408,1759479048351,-1144.07,0.00018313,2]
[388894409,1759479048361,-503.51,0.00018313,2]
[388894410,1759479048371,-1409.43,0.00018313,2]
[388894411,1759479048380,-763.76,0.00018313,2]
[388894412,1759479048389,-2588.55,0.00018313,2]
[388894413,1759479048398,-500.0,0.00018313,2]
[388894414,1759479048408,-846.7,0.00018313,2]
[388894415,1759479048418,-500.0,0.00018313,2]
[388894416,1759479048427,-651.7,0.00018313,2]
[388894417,1759479048438,-500.0,0.00018313,2]
[388894418,1759479048448,-2085.63,0.00018313,2]
[388894419,1759479048457,-500.0,0.00018313,2]
[388894420,1759479048467,-1615.98,0.00018313,2]
[388894421,1759479048476,-500.0,0.00018313,2]
[388894422,1759479048486,-500.0,0.00018313,2]
[388894423,1759479048495,-779.5,0.00018313,2]
[388894424,1759479048504,-500.0,0.00018313,2]
[388894425,1759479048514,-1433.33,0.00018313,2]
[388894426,1759479048525,-946.6,0.00018313,2]
[388894427,1759479048534,-500.0,0.00018314,2]
[388894428,1759479048544,-989.11,0.00018314,2]
[388894429,1759479048554,-288.79413245,0.00018314,2]
[388894430,1759479048796,-181.21567667,0.00018314,2]
[388894431,1759479048807,-831.78,0.00018314,2]
[388894432,1759479048816,-182.85676834,0.00018314,2]
[388894433,1759479049301,-500.0,0.0001804,2]
[388894434,1759479049311,-317.14323166,0.00018314,2]
[388894435,1759479049321,-500.0,0.00018314,2]
[388894436,1759479049331,-806.56,0.00018314,2]
[388894437,1759479049341,-500.0,0.00018314,2]
[388894438,1759479049351,-990.81,0.00018314,2]
[388894439,1759479049361,-500.0,0.00018314,2]
[388894440,1759479049372,-916.74,0.00018314,2]
[388894441,1759479049381,-500.0,0.00018314,2]
[388894442,1759479049391,-2350.61,0.00018314,2]
[388894443,1759479049401,-523.32,0.00018314,2]
[388894444,1759479049411,-6124.08497334,0.00018314,2]
[388894445,1759479051217,-580.40753498,0.00018039,2]
[388894446,1759479051227,-500.0,0.00018042,2]
[388894447,1759479051236,-977.19502666,0.00018314,2]
[388894448,1759479051246,-513.31,0.00018314,2]
[388894449,1759479051256,-4880.75,0.00018314,2]
[388894450,1759479051266,-624.64,0.00018314,2]
[388894451,1759479051275,-1694.78,0.00018314,2]
[388894452,1759479051284,-4521.78,0.00018314,2]
[388894453,1759479051293,-1703.88,0.00018314,2]
[388894454,1759479051303,-200.0,0.00018314,10]
[388894455,1759479051312,-200.0,0.00018314,10]
[388894456,1759479051322,-200.0,0.00018314,10]
[388894457,1759479051331,-200.0,0.00018314,10]
[388894458,1759479051340,-200.0,0.00018314,10]
[388894459,1759479051349,-200.0,0.00018314,10]
[388894460,1759479051358,-200.0,0.00018314,10]
[388894461,1759479051368,-200.0,0.00018314,10]
[388894462,1759479051377,-200.0,0.00018314,10]
[388894463,1759479051386,-200.0,0.00018314,10]
[388894464,1759479051396,-200.0,0.00018314,10]
[388894465,1759479051405,-200.0,0.00018314,10]
[388894466,1759479051414,-200.0,0.00018314,10]
[388894467,1759479051423,-200.0,0.00018314,10]
[388894468,1759479051432,-200.0,0.00018314,10]
[388894469,1759479051442,-200.0,0.00018314,10]
[388894470,1759479051452,-545.85,0.00018314,2]
[388894471,1759479051461,-500.0,0.00018314,2]
[388894472,1759479051471,-200.0,0.00018314,10]
[388894473,1759479051479,-200.0,0.00018314,10]
[388894474,1759479051489,-200.0,0.00018314,10]
[388894475,1759479051499,-200.0,0.00018314,10]
[388894476,1759479051508,-200.0,0.00018314,10]
[388894477,1759479051518,-200.0,0.00018314,10]
[388894478,1759479051527,-500.0,0.00018314,2]
[388894479,1759479051536,-611.03,0.00018314,2]
[388894480,1759479051545,-873.08,0.00018314,2]
[388894481,1759479051554,-737.88,0.00018314,2]
[388894482,1759479051563,-500.0,0.00018314,2]
[388894483,1759479051572,-421.83,0.00018314,2]
[388894484,1759479051581,-238.6787628,0.00018315,2]
[388894485,1759479051591,-500.0,0.00018315,2]